fUST/lending_fUST_20250814
["ID","MTS","AMOUNT","RATE_DAILY","PERIOD"]
[379073378,1755115885056,-460.0,0.00021095,2]
[379073379,1755115885066,-2758.86,0.00021095,2]
[379073380,1755115885075,-735.89,0.00021095,2]
[379073381,1755115885084,-460.0,0.00021095,2]
[379073382,1755115885094,-379.34405251,0.00021095,2]
[379073383,1755115885103,-504.54,0.00021095,2]
[379073384,1755115885112,-460.0,0.00021095,2]
[379073385,1755115885121,-460.0,0.00021095,2]
[379073386,1755115885130,-460.0,0.00021095,2]
[379073387,1755115885140,-460.0,0.00021095,2]
[379073388,1755115885149,-460.0,0.00021095,2]
[379073389,1755115885158,-619.7,0.00021095,2]
[379073390,1755115885168,-618.3,0.00021095,2]
[379073391,1755115885179,-577.53,0.00021095,2]
[379073392,1755115885189,-477.37,0.00021095,2]
[379073393,1755115885198,-460.0,0.00021095,2]
[379073394,1755115885208,-460.0,0.00021095,2]
[379073395,1755115885217,-460.0,0.00021095,2]
[379073396,1755115885226,-621.59,0.00021095,2]
[379073397,1755115885236,-718.3,0.00021095,2]
[379073398,1755115885245,-482.48,0.00021095,2]
[379073399,1755115885255,-460.0,0.00021095,2]
[379073400,1755115885264,-460.0,0.00021095,2]
[379073401,1755115885274,-841.58,0.00021095,2]
[379073402,1755115885284,-460.0,0.00021095,2]
[379073403,1755115885293,-460.0,0.00021095,2]
[379073404,1755115885302,-460.0,0.00021095,2]
[379073405,1755115885311,-460.0,0.00021095,2]
[379073406,1755115885321,-460.0,0.00021095,2]
[379073407,1755115885330,-460.0,0.00021095,2]
[379073408,1755115885338,-460.0,0.00021095,2]
[379073409,1755115885349,-1057.0,0.00021095,2]
[379073410,1755115885358,-725.98,0.00021095,2]
[379073411,1755115885367,-460.0,0.00021095,2]
[379073412,1755115885378,-460.0,0.00021095,2]
[379073413,1755115885388,-1761.85,0.00021095,2]
[379073414,1755115885397,-460.0,0.00021095,2]
[379073415,1755115885407,-573.0,0.00021095,2]
[379073416,1755115885416,-668.47,0.00021095,2]
[379073417,1755115885426,-611.81,0.00021095,2]
[379073418,1755115885436,-1341.69,0.00021095,2]
[379073419,1755115885446,-659.86,0.00021095,2]
[379073420,1755115885455,-460.0,0.00021095,2]
[379073421,1755115885465,-460.0,0.00021095,2]
[379073422,1755115885475,-740.97,0.00021095,2]
[379073423,1755115885484,-460.0,0.00021095,2]
[379073424,1755115885492,-460.0,0.00021095,2]
[379073425,1755115885501,-460.0,0.00021095,2]
[379073426,1755115885511,-460.0,0.00021095,2]
[379073427,1755115885521,-563.24,0.00021095,2]
[379073428,1755115885534,-460.0,0.00021095,2]
[379073429,1755115885543,-758.65,0.00021095,2]
[379073430,1755115885552,-2239.5,0.00021095,2]
[379073431,1755115885562,-460.0,0.00021095,2]
[379073432,1755115885571,-1881.39,0.00021095,2]
[379073433,1755115885581,-460.0,0.00021095,2]
[379073434,1755115885590,-850.59,0.00021095,2]
[379073435,1755115885599,-2386.49,0.00021095,2]
[379073436,1755115885609,-989.38,0.00021095,2]
[379073437,1755115885619,-460.0,0.00021095,2]
[379073438,1755115885628,-753.2,0.00021095,2]
[379073439,1755115885637,-6147.95,0.00021095,2]
[379073440,1755115885646,-460.0,0.00021095,2]
[379073441,1755115885655,-1410.98,0.00021095,2]
[379073442,1755115885665,-460.0,0.00021095,2]
[379073443,1755115885674,-1219.51,0.00021095,2]
[379073444,1755115885683,-1932.04,0.00021095,2]
[379073445,1755115885693,-477.42075504,0.00021095,2]
[379073446,1755115885702,-460.0,0.00021095,2]
[379073447,1755115885711,-460.0,0.00021095,2]
[379073448,1755115885721,-460.0,0.00021095,2]
[379073449,1755115885730,-460.0,0.00021095,2]
[379073450,1755115885739,-460.0,0.00021095,2]
[379073451,1755115885748,-814.53,0.00021095,2]
[379073452,1755115885757,-460.0,0.00021095,2]
[379073453,1755115885766,-460.0,0.00021095,2]
[379073454,1755115885776,-377.7,0.00021095,2]
[379073455,1755115885786,-460.0,0.00021095,2]
[379073456,1755115885795,-460.0,0.00021095,2]
[379073457,1755115885804,-812.34,0.00021095,2]
[379073458,1755115885814,-460.0,0.00021095,2]
[379073459,1755115885823,-1280.72,0.00021095,2]
[379073460,1755115885833,-735.0,0.00021095,2]
[379073461,1755115885843,-545.15,0.00021095,2]
[379073462,1755115885852,-160.12699139,0.00021095,2]
[379073463,1755115885862,-4267.69,0.00021095,2]
[379073464,1755115885871,-4192.29,0.00021095,2]
[379073465,1755115885880,-260.8088547,0.00021095,2]
[379073466,1755115885889,-460.0,0.00021095,2]
[379073467,1755115885899,-1382.67,0.00021095,2]
[379073468,1755115885908,-460.0,0.00021095,2]
[379073469,1755115885917,-923.5,0.00021095,2]
[379073470,1755115885927,-567.17,0.00021095,2]
[379073471,1755115885936,-460.0,0.00021095,2]
[379073472,1755115885946,-464.58962989,0.00021095,2]
[379073473,1755115886101,-1960.74,0.00021095,2]
[379073474,1755115886111,-650.46,0.00021095,2]
[379073475,1755115886126,-672.78,0.00021095,2]
[379073476,1755115886135,-460.0,0.00021095,2]
[379073477,1755115886146,-460.0,0.00021095,2]
[379073478,1755115886155,-543.86,0.00021095,2]
[379073479,1755115886164,-472.25,0.00021095,2]
[379073480,1755115886174,-460.0,0.00021095,2]
[379073481,1755115886187,-1053.23,0.00021095,2]
[379073482,1755115886196,-573.95,0.00021095,2]
[379073483,1755115886206,-460.0,0.00021095,2]
[379073484,1755115886215,-576.66,0.00021095,2]
[379073485,1755115886224,-474.27,0.00021095,2]
[379073486,1755115886235,-460.0,0.00021095,2]
[379073487,1755115886244,-276.89082328,0.00021095,2]
[379073488,1755115886254,-460.0,0.00021095,2]
[379073489,1755115886264,-662.93,0.00021095,2]
[379073490,1755115886274,-460.0,0.00021095,2]
[379073491,1755115886284,-543.96,0.00021095,2]
[379073492,1755115886294,-2189.79,0.00021095,2]
[379073493,1755115886303,-460.0,0.00021095,2]
[379073494,1755115886313,-669.33,0.00021095,2]
[379073495,1755115886324,-460.0,0.00021095,2]
[379073496,1755115886333,-946.5,0.00021095,2]
[379073497,1755115886343,-489.38,0.00021095,2]
[379073498,1755115886352,-167.29443585,0.00021095,2]
[379073499,1755115886361,-584.29528568,0.00021095,2]
[379073500,1755115886371,-1436.04,0.00021095,2]
[379073501,1755115886380,-507.52,0.00021095,2]
[379073502,1755115886390,-460.0,0.00021095,2]
[379073503,1755115886399,-1824.0,0.00021095,2]
[379073504,1755115886408,-733.14,0.00021095,2]
[379073505,1755115886418,-460.0,0.00021095,2]
[379073506,1755115886427,-478.0,0.00021095,2]
[379073507,1755115886436,-542.62,0.00021095,2]
[379073508,1755115886445,-460.0,0.00021095,2]
[379073509,1755115886455,-460.0,0.00021095,2]
[379073510,1755115886464,-1363.79,0.00021095,2]
[379073511,1755115886473,-460.0,0.00021095,2]
[379073512,1755115886482,-710.55,0.00021095,2]
[379073513,1755115886492,-460.0,0.00021095,2]
[379073514,1755115886502,-460.0,0.00021095,2]
[379073515,1755115886512,-460.0,0.00021095,2]
[379073516,1755115886521,-460.0,0.00021095,2]
[379073517,1755115886531,-2530.94,0.00021095,2]
[379073518,1755115886541,-1829.45,0.00021095,2]
[379073519,1755115886551,-460.0,0.00021095,2]
[379073520,1755115886560,-573.95,0.00021095,2]
[379073521,1755115886570,-460.0,0.00021095,2]
[379073522,1755115886579,-460.0,0.00021095,2]
[379073523,1755115886589,-1224.78,0.00021095,2]
[379073524,1755115886599,-460.0,0.00021095,2]
[379073525,1755115886608,-1547.71,0.00021095,2]
[379073526,1755115886618,-737.39,0.00021095,2]
[379073527,1755115886628,-460.0,0.00021095,2]
[379073528,1755115886637,-379.23152958,0.00021095,2]
[379073529,1755115886647,-1811.96,0.00021095,2]
[379073530,1755115886656,-460.0,0.00021095,2]
[379073531,1755115886666,-265.42342276,0.00021095,2]
[379073532,1755115886676,-460.0,0.00021095,2]
[379073533,1755115886685,-460.0,0.00021095,2]
[379073534,1755115886694,-460.0,0.00021095,2]
[379073535,1755115886705,-460.0,0.00021095,2]
[379073536,1755115886715,-460.0,0.00021095,2]
[379073537,1755115886724,-460.0,0.00021095,2]
[379073538,1755115886734,-1053.5,0.00021095,2]
[379073539,1755115886743,-1353.67,0.00021095,2]
[379073540,1755115886753,-460.0,0.00021095,2]
[379073541,1755115886763,-3269.31,0.00021095,2]
[379073542,1755115886772,-460.0,0.00021095,2]
[379073543,1755115886783,-3653.82,0.00021095,2]
[379073544,1755115886792,-460.0,0.00021095,2]
[379073545,1755115886802,-460.0,0.00021095,2]
[379073546,1755115886812,-472.6,0.00021095,2]
[379073547,1755115886821,-854.33,0.00021095,2]
[379073548,1755115886832,-3963.71,0.00021095,2]
[379073549,1755115886843,-460.0,0.00021095,2]
[379073550,1755115886852,-460.0,0.00021095,2]
[379073551,1755115886863,-746.01,0.00021095,2]
[379073552,1755115886873,-661.67,0.00021095,2]
[379073553,1755115886885,-2762.44,0.00021095,2]
[379073554,1755115886896,-635.51,0.00021095,2]
[379073555,1755115886905,-460.0,0.00021095,2]
[379073556,1755115886915,-770.63,0.00021095,2]
[379073557,1755115886925,-460.0,0.00021095,2]
[379073558,1755115886934,-1663.54,0.00021095,2]
[379073559,1755115886944,-460.0,0.00021095,2]
[379073560,1755115886954,-950.59,0.00021095,2]
[379073561,1755115886963,-1920.17,0.00021095,2]
[379073562,1755115886972,-823.48,0.00021095,2]
[379073563,1755115886982,-480.24,0.00021095,2]
[379073564,1755115886991,-460.0,0.00021095,2]
[379073565,1755115887000,-852.98,0.00021095,2]
[379073566,1755115887009,-786.91,0.00021095,2]
[379073567,1755115887019,-1415.94,0.00021095,2]
[379073568,1755115887028,-460.0,0.00021095,2]
[379073569,1755115887038,-460.0,0.00021095,2]
[379073570,1755115887048,-564.18,0.00021095,2]
[379073571,1755115887057,-460.0,0.00021095,2]
[379073572,1755115887066,-460.0,0.00021095,2]
[379073573,1755115887076,-1035.39,0.00021095,2]
[379073574,1755115887086,-2050.41,0.00021095,2]
[379073575,1755115887095,-460.0,0.00021095,2]
[379073576,1755115887105,-460.0,0.00021095,2]
[379073577,1755115887115,-1312.86,0.00021095,2]
[379073578,1755115887124,-460.0,0.00021095,2]
[379073579,1755115887133,-757.19,0.00021095,2]
[379073580,1755115887142,-1767.5,0.00021095,2]
[379073581,1755115887151,-596.07,0.00021095,2]
[379073582,1755115887161,-460.0,0.00021095,2]
[379073583,1755115887171,-460.0,0.00021095,2]
[379073584,1755115887182,-1225.81,0.00021095,2]
[379073585,1755115887193,-1655.44,0.00021095,2]
[379073586,1755115887202,-1021.93,0.00021095,2]
[379073587,1755115887211,-509.79,0.00021095,2]
[379073588,1755115887220,-173.02580037,0.00021095,2]
[379073589,1755115887230,-430.49129169,0.00021095,2]
[379073590,1755115887240,-1703.22,0.00021095,2]
[379073591,1755115887249,-460.0,0.00021095,2]
[379073592,1755115887259,-460.0,0.00021095,2]
[379073593,1755115887269,-791.06,0.00021095,2]
[379073594,1755115887278,-460.0,0.00021095,2]
[379073595,1755115887287,-4058.25,0.00021095,2]
[379073596,1755115887297,-460.0,0.00021095,2]
[379073597,1755115887307,-460.0,0.00021095,2]
[379073598,1755115887316,-369.49122345,0.00021095,2]
[379073599,1755115887326,-460.0,0.00021095,2]
[379073600,1755115887335,-460.0,0.00021095,2]
[379073601,1755115887344,-2019.38,0.00021095,2]
[379073602,1755115887353,-155.16874215,0.00021095,2]
[379073603,1755115887362,-460.0,0.00021095,2]
[379073604,1755115887372,-6700.12,0.00021095,2]
[379073605,1755115887381,-460.0,0.00021095,2]
[379073606,1755115887390,-1104.55,0.00021095,2]
[379073607,1755115887400,-684.95,0.00021095,2]
[379073608,1755115887409,-460.0,0.00021095,2]
[379073609,1755115887418,-1758.47,0.00021095,2]
[379073610,1755115887428,-460.0,0.00021095,2]
[379073611,1755115887437,-460.0,0.00021095,2]
[379073612,1755115887446,-460.0,0.00021095,2]
[379073613,1755115887456,-460.0,0.00021095,2]
[379073614,1755115887466,-460.0,0.00021095,2]
[379073615,1755115887475,-1671.8,0.00021095,2]
[379073616,1755115887484,-11030.84,0.00021095,2]
[379073617,1755115887493,-460.0,0.00021095,2]
[379073618,1755115887502,-426.54661616,0.00021095,2]
[379073619,1755115887511,-460.0,0.00021095,2]
[379073620,1755115887521,-460.0,0.00021095,2]
[379073621,1755115887532,-460.0,0.00021095,2]
[379073622,1755115887542,-460.0,0.00021095,2]
[379073623,1755115887551,-762.63,0.00021095,2]
[379073624,1755115887561,-460.0,0.00021095,2]
[379073625,1755115887570,-460.0,0.00021095,2]
[379073626,1755115887579,-8448.68,0.00021095,2]
[379073627,1755115887589,-460.0,0.00021095,2]
[379073628,1755115887598,-3051.43,0.00021095,2]
[379073629,1755115887607,-460.0,0.00021095,2]
[379073630,1755115887617,-460.0,0.00021095,2]
[379073631,1755115887626,-460.0,0.00021095,2]
[379073632,1755115887635,-460.0,0.00021095,2]
[379073633,1755115887645,-691.76,0.00021095,2]
[379073634,1755115887654,-460.0,0.00021095,2]
[379073635,1755115887663,-460.0,0.00021095,2]
[379073636,1755115887672,-460.0,0.00021095,2]
[379073637,1755115887681,-460.0,0.00021095,2]
[379073638,1755115887690,-450.0,0.00021116,2]
[379073639,1755115887700,-2000.0,0.00021116,2]
[379073640,1755115887709,-2000.0,0.00021116,2]
[379073641,1755115887719,-2000.0,0.00021116,2]
[379073642,1755115887728,-400.0,0.00021121,2]
[379073643,1755115887737,-4640.0,0.00021127,2]
[379073644,1755115887746,-4640.0,0.00021205,2]
[379073645,1755115887755,-699.69660894,0.00021364,2]
[379073646,1755115887764,-151.0,0.00021369,2]
[379073647,1755115887773,-151.0,0.00021369,2]
[379073648,1755115887784,-151.0,0.00021369,2]
[379073649,1755115887793,-151.0,0.00021369,2]
[379073650,1755115887802,-164.509196,0.00021369,2]
[379073651,1755115887812,-151.0,0.00021369,2]
[379073652,1755115887821,-151.0,0.00021369,2]
[379073653,1755115887830,-151.0,0.00021369,2]
[379073654,1755115887839,-151.0,0.00021369,2]
[379073655,1755115887849,-151.0,0.00021369,2]
[379073656,1755115887858,-151.0,0.00021369,2]
[379073657,1755115887867,-151.0,0.00021369,2]
[379073658,1755115887876,-151.0,0.00021369,2]
[379073659,1755115887885,-151.765625,0.00021369,2]
[379073660,1755115887894,-231.744056,0.00021369,2]
[379073661,1755115887903,-231.744056,0.00021369,2]
[379073662,1755115887912,-151.0,0.00021369,2]
[379073663,1755115887922,-151.0,0.00021369,2]
[379073664,1755115887931,-151.0,0.00021369,2]
[379073665,1755115887940,-180.100457,0.00021369,2]
[379073666,1755115887949,-180.100457,0.00021369,2]
[379073667,1755115887959,-742.469247,0.00021369,2]
[379073668,1755115887967,-742.469247,0.00021369,2]
[379073669,1755115887977,-151.0,0.00021369,2]
[379073670,1755115887986,-732.95,0.00021369,2]
[379073671,1755115887996,-1719.5,0.00021369,2]
[379073672,1755115888005,-460.0,0.00021369,2]
[379073673,1755115888015,-368.720086,0.00021369,2]
[379073674,1755115888025,-384.65068633,0.00021369,2]
[379073675,1755115888036,-368.720086,0.00021369,2]
[379073676,1755115888047,-460.0,0.00021369,2]
[379073677,1755115888057,-662.8,0.00021369,2]
[379073678,1755115888066,-460.0,0.00021369,2]
[379073679,1755115888076,-578.27,0.00021369,2]
[379073680,1755115888086,-462.01,0.00021369,2]
[379073681,1755115888096,-460.0,0.00021369,2]
[379073682,1755115888105,-469.49,0.00021369,2]
[379073683,1755115888114,-460.0,0.00021369,2]
[379073684,1755115888124,-460.0,0.00021369,2]
[379073685,1755115888134,-460.0,0.00021369,2]
[379073686,1755115888143,-460.0,0.00021369,2]
[379073687,1755115888153,-460.0,0.00021369,2]
[379073688,1755115888162,-460.0,0.00021369,2]
[379073689,1755115888173,-460.0,0.00021369,2]
[379073690,1755115888186,-475.12,0.00021369,2]
[379073691,1755115888195,-460.0,0.00021369,2]
[379073692,1755115888205,-460.0,0.00021369,2]
[379073693,1755115888215,-585.4,0.00021369,2]
[379073694,1755115888225,-460.0,0.00021369,2]
[379073695,1755115888234,-701.63,0.00021369,2]
[379073696,1755115888243,-460.0,0.00021369,2]
[379073697,1755115888253,-460.0,0.00021369,2]
[379073698,1755115888265,-460.0,0.00021369,2]
[379073699,1755115888275,-565.10739257,0.00021369,2]
[379073700,1755115888285,-506.15,0.00021369,2]
[379073701,1755115888295,-772.37,0.00021369,2]
[379073702,1755115888304,-460.0,0.00021369,2]
[379073703,1755115888313,-460.0,0.00021369,2]
[379073704,1755115888322,-460.0,0.00021369,2]
[379073705,1755115888331,-460.0,0.00021369,2]
[379073706,1755115888340,-500.0,0.00021369,2]
[379073707,1755115888350,-460.0,0.00021369,2]
[379073708,1755115888360,-460.0,0.00021369,2]
[379073709,1755115888369,-460.0,0.00021369,2]
[379073710,1755115888378,-460.0,0.00021369,2]
[379073711,1755115888388,-499.24,0.00021369,2]
[379073712,1755115888397,-353.1881626,0.00021369,2]
[379073713,1755115888406,-460.0,0.00021369,2]
[379073714,1755115888415,-460.0,0.00021369,2]
[379073715,1755115888424,-460.0,0.00021369,2]
[379073716,1755115888433,-1083.49,0.00021369,2]
[379073717,1755115888442,-634.17,0.00021369,2]
[379073718,1755115888451,-1683.37,0.00021369,2]
[379073719,1755115888460,-1312.7,0.00021369,2]
[379073720,1755115888469,-552.5,0.00021369,2]
[379073721,1755115888478,-460.0,0.00021369,2]
[379073722,1755115888487,-460.0,0.00021369,2]
[379073723,1755115888496,-403.51978562,0.00021369,2]
[379073724,1755115888505,-460.0,0.00021369,2]
[379073725,1755115888514,-1170.68,0.00021369,2]
[379073726,1755115888523,-468.41523856,0.00021369,2]
[379073727,1755115888533,-460.0,0.00021369,2]
[379073728,1755115888543,-460.0,0.00021369,2]
[379073729,1755115888552,-460.0,0.00021369,2]
[379073730,1755115888561,-460.0,0.00021369,2]
[379073731,1755115888570,-788.14,0.00021369,2]
[379073732,1755115888579,-258.839888,0.00021369,2]
[379073733,1755115888588,-460.0,0.00021369,2]
[379073734,1755115888598,-258.839888,0.00021369,2]
[379073735,1755115888607,-740.52,0.00021369,2]
[379073736,1755115888616,-460.0,0.00021369,2]
[379073737,1755115888625,-1140.3,0.00021369,2]
[379073738,1755115888635,-460.0,0.00021369,2]
[379073739,1755115888644,-863.07,0.00021369,2]
[379073740,1755115888792,-1663.95,0.00021369,2]
[379073741,1755115888802,-961.59,0.00021369,2]
[379073742,1755115888812,-579.66,0.00021369,2]
[379073743,1755115888821,-460.0,0.00021369,2]
[379073744,1755115888830,-460.0,0.00021369,2]
[379073745,1755115888840,-460.0,0.00021369,2]
[379073746,1755115888849,-460.0,0.00021369,2]
[379073747,1755115888858,-1069.56,0.00021369,2]
[379073748,1755115888867,-1437.38,0.00021369,2]
[379073749,1755115888876,-460.0,0.00021369,2]
[379073750,1755115888885,-460.0,0.00021369,2]
[379073751,1755115888894,-460.0,0.00021369,2]
[379073752,1755115888903,-460.0,0.00021369,2]
[379073753,1755115888913,-151.0,0.00021369,2]
[379073754,1755115888923,-460.0,0.00021369,2]
[379073755,1755115888932,-460.0,0.00021369,2]
[379073756,1755115888941,-460.0,0.00021369,2]
[379073757,1755115888950,-460.0,0.00021369,2]
[379073758,1755115888959,-460.0,0.00021369,2]
[379073759,1755115888968,-460.0,0.00021369,2]
[379073760,1755115888977,-460.0,0.00021369,2]
[379073761,1755115888985,-467.85,0.00021369,2]
[379073762,1755115888994,-460.0,0.00021369,2]
[379073763,1755115889003,-460.0,0.00021369,2]
[379073764,1755115889012,-1485.36,0.00021369,2]
[379073765,1755115889020,-1252.41,0.00021369,2]
[379073766,1755115889031,-460.0,0.00021369,2]
[379073767,1755115889040,-602.53,0.00021369,2]
[379073768,1755115889049,-905.73,0.00021369,2]
[379073769,1755115889058,-460.0,0.00021369,2]
[379073770,1755115889068,-460.0,0.00021369,2]
[379073771,1755115889077,-460.0,0.00021369,2]
[379073772,1755115889087,-2758.86,0.00021369,2]
[379073773,1755115889096,-460.0,0.00021369,2]
[379073774,1755115889105,-735.89,0.00021369,2]
[379073775,1755115889114,-504.54,0.00021369,2]
[379073776,1755115889123,-460.0,0.00021369,2]
[379073777,1755115889132,-582.48450472,0.00021369,2]
[379073778,1755115889142,-460.0,0.00021369,2]
[379073779,1755115889151,-460.0,0.00021369,2]
[379073780,1755115889161,-619.7,0.00021369,2]
[379073781,1755115889172,-618.3,0.00021369,2]
[379073782,1755115889183,-577.53,0.00021369,2]
[379073783,1755115889193,-477.37,0.00021369,2]
[379073784,1755115889203,-460.0,0.00021369,2]
[379073785,1755115889212,-460.0,0.00021369,2]
[379073786,1755115889221,-460.0,0.00021369,2]
[379073787,1755115889233,-621.59,0.00021369,2]
[379073788,1755115889242,-718.3,0.00021369,2]
[379073789,1755115889252,-482.48,0.00021369,2]
[379073790,1755115889262,-460.0,0.00021369,2]
[379073791,1755115889272,-460.0,0.00021369,2]
[379073792,1755115889281,-841.58,0.00021369,2]
[379073793,1755115889290,-460.0,0.00021369,2]
[379073794,1755115889300,-460.0,0.00021369,2]
[379073795,1755115889309,-460.0,0.00021369,2]
[379073796,1755115889319,-460.0,0.00021369,2]
[379073797,1755115889328,-460.0,0.00021369,2]
[379073798,1755115889337,-460.0,0.00021369,2]
[379073799,1755115889347,-460.0,0.00021369,2]
[379073800,1755115889356,-1057.0,0.00021369,2]
[379073801,1755115889366,-725.98,0.00021369,2]
[379073802,1755115889377,-483.22492024,0.00021369,2]
[379073803,1755115889386,-460.0,0.00021369,2]
[379073804,1755115889396,-1761.85,0.00021369,2]
[379073805,1755115889405,-460.0,0.00021369,2]
[379073806,1755115889414,-573.0,0.00021369,2]
[379073807,1755115889424,-668.47,0.00021369,2]
[379073808,1755115889433,-611.81,0.00021369,2]
[379073809,1755115889442,-1341.69,0.00021369,2]
[379073810,1755115889451,-659.86,0.00021369,2]
[379073811,1755115889461,-390.52161601,0.00021369,2]
[379073812,1755115889472,-460.0,0.00021369,2]
[379073813,1755115889481,-740.97,0.00021369,2]
[379073814,1755115889490,-460.0,0.00021369,2]
[379073815,1755115889500,-460.0,0.00021369,2]
[379073816,1755115889509,-460.0,0.00021369,2]
[379073817,1755115889518,-460.0,0.00021369,2]
[379073818,1755115889527,-563.24,0.00021369,2]
[379073819,1755115889539,-460.0,0.00021369,2]
[379073820,1755115889548,-758.65,0.00021369,2]
[379073821,1755115889557,-2239.5,0.00021369,2]
[379073822,1755115889566,-460.0,0.00021369,2]
[379073823,1755115889576,-1881.39,0.00021369,2]
[379073824,1755115889585,-460.0,0.00021369,2]
[379073825,1755115889594,-850.59,0.00021369,2]
[379073826,1755115889604,-2386.49,0.00021369,2]
[379073827,1755115889613,-989.38,0.00021369,2]
[379073828,1755115889623,-460.0,0.00021369,2]
[379073829,1755115889632,-753.2,0.00021369,2]
[379073830,1755115889641,-6147.95,0.00021369,2]
[379073831,1755115889651,-460.0,0.00021369,2]
[379073832,1755115889660,-1410.98,0.00021369,2]
[379073833,1755115889670,-460.0,0.00021369,2]
[379073834,1755115889681,-1219.51,0.00021369,2]
[379073835,1755115889690,-1932.04,0.00021369,2]
[379073836,1755115889700,-460.0,0.00021369,2]
[379073837,1755115889710,-460.0,0.00021369,2]
[379073838,1755115889719,-460.0,0.00021369,2]
[379073839,1755115889728,-460.0,0.00021369,2]
[379073840,1755115889738,-460.0,0.00021369,2]
[379073841,1755115889748,-814.53,0.00021369,2]
[379073842,1755115889757,-460.0,0.00021369,2]
[379073843,1755115889767,-460.0,0.00021369,2]
[379073844,1755115889776,-460.0,0.00021369,2]
[379073845,1755115889787,-460.0,0.00021369,2]
[379073846,1755115889796,-812.34,0.00021369,2]
[379073847,1755115889805,-460.0,0.00021369,2]
[379073848,1755115889815,-1280.72,0.00021369,2]
[379073849,1755115889824,-735.0,0.00021369,2]
[379073850,1755115889832,-545.15,0.00021369,2]
[379073851,1755115889842,-4267.69,0.00021369,2]
[379073852,1755115889851,-4192.29,0.00021369,2]
[379073853,1755115889862,-460.0,0.00021369,2]
[379073854,1755115889872,-460.0,0.00021369,2]
[379073855,1755115889881,-1382.67,0.00021369,2]
[379073856,1755115889892,-923.5,0.00021369,2]
[379073857,1755115889903,-567.17,0.00021369,2]
[379073858,1755115889913,-460.0,0.00021369,2]
[379073859,1755115889923,-1960.74,0.00021369,2]
[379073860,1755115889933,-650.46,0.00021369,2]
[379073861,1755115889942,-672.78,0.00021369,2]
[379073862,1755115889952,-460.0,0.00021369,2]
[379073863,1755115889961,-460.0,0.00021369,2]
[379073864,1755115889971,-543.86,0.00021369,2]
[379073865,1755115889981,-472.25,0.00021369,2]
[379073866,1755115889990,-460.0,0.00021369,2]
[379073867,1755115889998,-573.95,0.00021369,2]
[379073868,1755115890007,-1053.23,0.00021369,2]
[379073869,1755115890016,-460.0,0.00021369,2]
[379073870,1755115890024,-474.27,0.00021369,2]
[379073871,1755115890033,-576.66,0.00021369,2]
[379073872,1755115890041,-460.0,0.00021369,2]
[379073873,1755115890050,-460.0,0.00021369,2]
[379073874,1755115890059,-662.93,0.00021369,2]
[379073875,1755115890069,-460.0,0.00021369,2]
[379073876,1755115890078,-543.96,0.00021369,2]
[379073877,1755115890087,-2189.79,0.00021369,2]